fUST/lending_fUST_20260124
["ID","MTS","AMOUNT","RATE_DAILY","PERIOD"]
[403141290,1769193042827,-2309.05,0.00019996,2]
[403141291,1769193042836,-2309.05,0.00019996,2]
[403141292,1769193042845,-2309.05,0.00019996,2]
[403141293,1769193042856,-2309.05,0.00019996,2]
[403141294,1769193042865,-2309.05,0.00019996,2]
[403141295,1769193042874,-2309.05,0.00019996,2]
[403141296,1769193042883,-2309.05,0.00019996,2]
[403141297,1769193042892,-2309.05,0.00019996,2]
[403141298,1769193042902,-2309.05,0.00019996,2]
[403141299,1769193042915,-2309.05,0.00019996,2]
[403141301,1769193042924,-2309.05,0.00019996,2]
[403141302,1769193042934,-2309.05,0.00019996,2]
[403141304,1769193042943,-2309.05,0.00019996,2]
[403141305,1769193042952,-2309.05,0.00019996,2]
[403141306,1769193042961,-2309.05,0.00019996,2]
[403141307,1769193042970,-2309.05,0.00019996,2]
[403141308,1769193042979,-2309.05,0.00019996,2]
[403141309,1769193042988,-2309.05,0.00019996,2]
[403141310,1769193042997,-2309.05,0.00019996,2]
[403141311,1769193043007,-2309.05,0.00019996,2]
[403141312,1769193043016,-2309.05,0.00019996,2]
[403141313,1769193043026,-2309.05,0.00019996,2]
[403141315,1769193043035,-2309.05,0.00019996,2]
[403141316,1769193043044,-2309.05,0.00019996,2]
[403141317,1769193043052,-2309.05,0.00019996,2]
[403141319,1769193043061,-2309.05,0.00019996,2]
[403141321,1769193043070,-2309.05,0.00019996,2]
[403141323,1769193043079,-2309.05,0.00019996,2]
[403141325,1769193043088,-2309.05,0.00019996,2]
[403141326,1769193043097,-2309.05,0.00019996,2]
[403141328,1769193043107,-2309.05,0.00019996,2]
[403141331,1769193043117,-2309.05,0.00019996,2]
[403141333,1769193043127,-2309.05,0.00019996,2]
[403141335,1769193043135,-2309.05,0.00019996,2]
[403141337,1769193043144,-2309.05,0.00019996,2]
[403141338,1769193043154,-2309.05,0.00019996,2]
[403141339,1769193043163,-2309.05,0.00019996,2]
[403141340,1769193043173,-2309.05,0.00019996,2]
[403141341,1769193043184,-4450.11,0.00019996,2]
[403141342,1769193043193,-304.0,0.00019996,2]
[403141343,1769193043202,-206.994784,0.00019999,2]
[403141344,1769193043212,-206.994784,0.00019999,2]
[403141345,1769193043222,-206.994784,0.00019999,2]
[403141346,1769193043236,-206.994784,0.00019999,2]
[403141347,1769193043246,-791.0,0.0002,2]
[403141348,1769193043255,-1743.34,0.0002,2]
[403141349,1769193043265,-198.56,0.0002,2]
[403141350,1769193043278,-173909.74566139,0.0002,2]
[403141351,1769193043681,-652.267747,0.00019178,2]
[403141370,1769193046506,-1553.472342,0.000185,2]
[403141371,1769193046521,-1000.0,0.00019,2]
[403141372,1769193046537,-242.149068,0.00019178,2]
[403141373,1769193046551,-894.416815,0.00019178,2]
[403141374,1769193046560,-894.416815,0.00019178,2]
[403141375,1769193046570,-894.416815,0.00019178,2]
[403141376,1769193046579,-894.416815,0.00019178,2]
[403141377,1769193046589,-773.0668759,0.00019178,2]
[403141378,1769193046607,-121.3499391,0.00019178,2]
[403141379,1769193046616,-471.42430822,0.00019178,2]
[403141407,1769194000241,229.0,0.00014,2]
[403141410,1769194128780,168.56,0.00012243,2]
[403141411,1769194129101,224.75,0.00013185,2]
[403141438,1769194232338,-153.55,0.00014123,2]
[403141439,1769194232348,-215.39585135,0.00014162,2]
[403141440,1769194232357,-500.0,0.00014529,2]
[403141441,1769194232368,-288.0993389,0.00014529,2]
[403141443,1769194232378,-2565.9670669,0.00014739,2]
[403141444,1769194232387,-2367.9077995,0.00015081,2]
[403141445,1769194232396,-204.73,0.0001521,2]
[403141446,1769194232406,-200.0,0.000154,2]
[403141447,1769194232415,-254.16710459,0.00016162,2]
[403141448,1769194232426,-728.12039936,0.00016174,2]
[403141449,1769194232435,-1015.8409813,0.00016174,2]
[403141450,1769194232444,-300.0,0.00016221,2]
[403141451,1769194232454,-300.0,0.00016221,2]
[403141452,1769194232463,-500.0,0.00016222,2]
[403141453,1769194232472,-210.59485254,0.00016222,2]
[403141454,1769194232482,-500.0,0.00016222,2]
[403141455,1769194232491,-228.44943322,0.00016222,2]
[403141456,1769194232500,-234.01413472,0.00016222,2]
[403141457,1769194232510,-24953.0775353,0.00016223,2]
[403141458,1769194232519,-255.91,0.00016296,2]
[403141459,1769194232529,-544.762454,0.00016438,2]
[403141460,1769194232538,-160.0,0.00016714,2]
[403141461,1769194232548,-1041.66666667,0.00016985,2]
[403141462,1769194232558,-307.09,0.00017383,2]
[403141463,1769194232572,-551.46799508,0.0001756,7]
[403141464,1769194232581,-300.0,0.00017769,2]
[403141465,1769194232591,-300.0,0.00017769,2]
[403141466,1769194232602,-300.0,0.00017769,2]
[403141467,1769194232612,-300.0,0.00017769,2]
[403141468,1769194232622,-300.0,0.00017769,2]
[403141469,1769194232631,-300.0,0.00017769,2]
[403141470,1769194232643,-300.0,0.00017769,2]
[403141471,1769194232652,-300.0,0.00017769,2]
[403141472,1769194232661,-300.0,0.00017769,2]
[403141473,1769194232674,-300.0,0.00017769,2]
[403141474,1769194232684,-300.0,0.00017769,2]
[403141475,1769194232693,-300.0,0.00017769,2]
[403141476,1769194232703,-300.0,0.00017769,2]
[403141477,1769194232713,-300.0,0.00017769,2]
[403141478,1769194232722,-300.0,0.00017769,2]
[403141479,1769194232731,-151.0,0.00018047,2]
[403141480,1769194232741,-151.0,0.00018047,2]
[403141481,1769194232750,-151.0,0.00018047,2]
[403141482,1769194232760,-151.0,0.00018047,2]
[403141483,1769194232769,-151.0,0.00018047,2]
[403141484,1769194232778,-151.0,0.00018047,2]
[403141485,1769194232791,-151.0,0.00018047,2]
[403141486,1769194232800,-151.0,0.00018047,2]
[403141487,1769194232810,-151.0,0.00018047,2]
[403141488,1769194232819,-151.0,0.00018047,2]
[403141489,1769194232828,-151.0,0.00018047,2]
[403141490,1769194232838,-600.0,0.00018123,2]
[403141491,1769194232847,-292.93835783,0.00018162,2]
[403141492,1769194232856,-187.78006525,0.00018222,2]
[403141493,1769194232865,-210.06421973,0.00018222,2]
[403141494,1769194232875,-194.72792766,0.00018222,2]
[403141495,1769194232884,-201.93286099,0.00018222,2]
[403141496,1769194232895,-209.40437684,0.00018222,2]
[403141497,1769194232905,-217.15233878,0.00018222,2]
[403141498,1769194232914,-225.18697532,0.00018222,2]
[403141499,1769194232923,-233.51889341,0.00018222,2]
[403141500,1769194232933,-242.15909246,0.00018222,2]
[403141501,1769194232942,-251.11897888,0.00018222,2]
[403141502,1769194232951,-2487.15318209,0.00018222,2]
[403141503,1769194232960,-260.4103811,0.00018222,2]
[403141504,1769194232970,-270.0455652,0.00018222,2]
[403141505,1769194232978,-280.03725112,0.00018222,2]
[403141506,1769194232987,-290.39862941,0.00018222,2]
[403141507,1769194232996,-301.1433787,0.00018222,2]
[403141508,1769194233007,-19011.56661146,0.00018222,2]
[403141509,1769194233015,-514.84070869,0.00018222,2]
[403141510,1769194233025,-184.0,0.0001836,120]
[403141511,1769194233035,-358.27,0.00018469,2]
[403141512,1769194233045,-1850.06901122,0.00018483,7]
[403141513,1769194233054,-1939.63505009,0.00018483,7]
[403141514,1769194233064,-1015.84098126,0.00018628,2]
[403141515,1769194233074,-343.01,0.00018735,2]
[403141516,1769194233085,-2579.17784983,0.0001877,2]
[403141517,1769194233094,-533.88981491,0.0001877,2]
[403141518,1769194233104,-184.0,0.00019278,120]
[403141519,1769194233114,-2674.60743027,0.00019318,2]
[403141520,1769194233123,-1314.15675834,0.00019456,7]
[403141521,1769194233133,-1524.19,0.00019499,2]
[403141522,1769194233142,-54134.68378038,0.000195,2]
[403141523,1769194233151,-1000.0,0.000195,2]
[403141524,1769194233161,-409.46,0.00019556,2]
[403141525,1769194233170,-2354.40952615,0.000196,2]
[403141526,1769194233181,-947.6,0.0001969,3]
[403141527,1769194233191,-473.8,0.0001969,3]
[403141528,1769194233201,-236.9,0.0001969,3]
[403141529,1769194233210,-710.7,0.0001969,3]
[403141530,1769194233219,-3819.12513411,0.00019699,2]
[403141531,1769194233642,-339.00851463,0.00019699,2]
[403141532,1769194233652,-8997.42631615,0.000197,7]
[403141569,1769194238534,-2600.00477781,0.000154,2]
[403141571,1769194238544,-553.64373807,0.00019318,2]
[403141573,1769194238554,-264.22846816,0.000197,7]
[403141895,1769194245371,-1208.897064,0.000197,7]
[403141909,1769194246618,-1527.73,0.00019499,2]
[403141910,1769194246628,-2938.78180559,0.000197,7]
[403141911,1769194273792,196.48,0.00013035,2]
[403141912,1769194277921,500.0,0.00013699,2]
[403141913,1769194338512,500.0,0.000104,2]
[403141914,1769194339024,500.0,0.000104,2]
[403141915,1769194339657,500.0,0.000104,2]
[403141916,1769194353157,265.25,0.00013113,2]
[403141917,1769194400069,500.0,0.00013699,2]
[403141919,1769194430948,258.5,0.00013132,2]
[403141920,1769194448248,5000.0,0.00014,2]
[403141921,1769194456276,5000.0,0.00014,2]
[403141922,1769194471602,5000.0,0.00014,2]
[403141923,1769194479736,5000.0,0.00014,2]
[403141924,1769194494828,2102.0,0.00014,2]
[403141925,1769194502636,3307.22673163,0.00014,2]
[403141926,1769194508846,251.92,0.0001312,2]
[403141927,1769194518372,5000.0,0.00014,2]
[403141928,1769194520591,500.0,0.00013699,2]
[403141929,1769194541139,5000.0,0.00014,2]
[403141931,1769194587076,245.51,0.00013115,2]
[403141932,1769194605946,5000.0,0.00014,2]
[403141933,1769194628366,5000.0,0.00014,2]
[403141934,1769194643178,500.0,0.00013699,2]
[403141935,1769194650427,5000.0,0.00014,2]
[403141936,1769194665766,239.26,0.00013107,2]
[403141937,1769194672758,5000.0,0.00014,2]
[403141938,1769194695002,5000.0,0.00014,2]
[403141939,1769194717763,5000.0,0.00014,2]
[403141940,1769194741206,5000.0,0.00014,2]
[403141941,1769194743903,233.17,0.00013093,2]
[403141942,1769194762185,500.0,0.00013699,2]
[403141943,1769194763261,5000.0,0.00014,2]
[403141944,1769194785096,5000.0,0.00014,2]
[403141945,1769194807297,5000.0,0.00014,2]
[403141946,1769194821748,227.23,0.00013061,2]
[403141947,1769194829447,5000.0,0.00014,2]
[403141948,1769194852383,5000.0,0.00014,2]
[403141949,1769194868556,-340.85,0.0001415,2]
[403141950,1769194868583,-623.0,0.00014184,2]
[403141951,1769194868611,-219.22408331,0.00014215,2]
[403141952,1769194868639,-1000.0,0.00014247,2]
[403141953,1769194868674,-300.0,0.00014557,2]
[403141954,1769194868695,-340.85,0.00014558,2]
[403141955,1769194868707,-159.15,0.00014558,2]
[403141956,1769194868717,-463.85,0.00014558,2]
[403141957,1769194868734,-36.15,0.00014558,2]
[403141958,1769194868744,-183.07408331,0.00014558,2]
[403141959,1769194868760,-316.92591669,0.00014558,2]
[403141960,1769194868769,-500.0,0.00014558,2]
[403141961,1769194868778,-183.07408331,0.00014558,2]
[403141962,1769194868808,-300.0,0.00014558,2]
[403141963,1769194868876,-16.92591669,0.00014558,2]
[403141964,1769194868885,-16.92591669,0.00014558,2]
[403141965,1769194883383,500.0,0.00013699,2]
[403141966,1769194901434,222.21,0.00013117,2]
[403141967,1769194904867,2716.37487398,0.00014,2]
[403141968,1769194979399,216.55,0.0001312,2]
[403141969,1769195006729,508.81689304,0.00013699,2]
[403141970,1769195058411,211.04,0.00013122,2]
[403141971,1769195068729,5000.0,0.00014,2]
[403141972,1769195091034,652.61168417,0.00014,2]
[403141973,1769195141229,205.67,0.00013126,2]
[403141974,1769195219504,200.43,0.00012968,2]
[403141976,1769195297431,195.33,0.00012969,2]
[403141977,1769195379266,190.36,0.0001297,2]
[403142008,1769195432519,-285.54,0.0001405,2]
[403142009,1769195432528,-621.0,0.0001405,2]
[403142010,1769195432538,-250.97020306,0.00014392,2]
[403142012,1769195432547,-271.46859143,0.00014553,2]
[403142013,1769195432577,-228.53140857,0.00014553,2]
[403142014,1769195432586,-500.0,0.00014553,2]
[403142015,1769195432595,-271.46859143,0.00014553,2]
[403142016,1769195432605,-228.53140857,0.00014553,2]
[403142017,1769195432615,-500.0,0.00014553,2]
[403142018,1769195432625,-500.0,0.00014553,2]
[403142019,1769195432635,-500.0,0.00014553,2]
[403142020,1769195432644,-474.49278165,0.00014553,2]
[403142021,1769195432655,-500.0,0.00014553,2]
[403142022,1769195432665,-500.0,0.00014553,2]
[403142023,1769195432674,-500.0,0.00014553,2]
[403142024,1769195432684,-500.0,0.00014553,2]
[403142025,1769195432693,-500.0,0.00014553,2]
[403142026,1769195432703,-500.0,0.00014553,2]
[403142027,1769195432712,-500.0,0.00014553,2]
[403142028,1769195432722,-500.0,0.00014553,2]
[403142029,1769195432732,-500.0,0.00014553,2]
[403142030,1769195432741,-500.0,0.00014553,2]
[403142031,1769195432751,-500.0,0.00014553,2]
[403142032,1769195432760,-500.0,0.00014553,2]
[403142033,1769195432769,-500.0,0.00014553,2]
[403142034,1769195432779,-500.0,0.00014553,2]
[403142035,1769195432788,-500.0,0.00014553,2]
[403142036,1769195432798,-500.0,0.00014553,2]
[403142037,1769195432807,-500.0,0.00014553,2]
[403142038,1769195432817,-500.0,0.00014553,2]
[403142039,1769195432827,-500.0,0.00014553,2]
[403142040,1769195432836,-500.0,0.00014553,2]
[403142041,1769195432845,-500.0,0.00014553,2]
[403142042,1769195432854,-500.0,0.00014553,2]
[403142043,1769195432864,-500.0,0.00014553,2]
[403142044,1769195432874,-500.0,0.00014553,2]
[403142045,1769195432886,-1200.0,0.00014553,2]
[403142046,1769195432896,-300.0,0.00014553,2]
[403142047,1769195432906,-500.0,0.00014559,2]
[403142048,1769195432915,-23714.6259203,0.00014561,2]
[403142049,1769195432927,-600.0,0.0001485,2]
[403142050,1769195432937,-300.0,0.00014851,2]
[403142051,1769195432947,-300.0,0.00014851,2]
[403142052,1769195432957,-300.0,0.00014851,2]
[403142053,1769195432966,-300.0,0.00014851,2]
[403142054,1769195432975,-300.0,0.00014851,2]
[403142055,1769195432989,-300.0,0.00014851,2]
[403142056,1769195432998,-300.0,0.00014851,2]
[403142057,1769195433008,-300.0,0.00014851,2]
[403142058,1769195433028,-300.0,0.00014851,2]
[403142059,1769195433048,-300.0,0.00014851,2]
[403142060,1769195433195,-300.0,0.00014851,2]
[403142061,1769195433208,-300.0,0.00014851,2]
[403142062,1769195433218,-300.0,0.00014851,2]
[403142063,1769195433227,-300.0,0.00014851,2]
[403142064,1769195433237,-300.0,0.00014851,2]
[403142065,1769195433246,-190.874888,0.00015068,2]
[403142066,1769195433255,-380.71,0.00015131,2]
[403142067,1769195433264,-155.0,0.00015342,2]
[403142068,1769195433274,-500.0,0.00015749,30]
[403142069,1769195433284,-500.0,0.00015749,30]
[403142070,1769195433294,-500.0,0.00015749,30]
[403142071,1769195433303,-500.0,0.00015749,30]
[403142072,1769195433314,-240.0,0.00015935,2]
[403142073,1769195433323,-29411.25096963,0.00016123,2]
[403142074,1769195433333,-475.89,0.00016212,2]
[403142075,1769195433342,-720.0,0.00016335,2]
[403142076,1769195433352,-296.14483961,0.00016392,2]
[403142077,1769195433362,-381.3337178,0.00016438,2]
[403142078,1769195433371,-156.5,0.00016438,2]
[403142079,1769195433382,-160.0,0.00016732,2]
[403142080,1769195433392,-1000.0,0.00016915,2]
[403142081,1769195433401,-571.07,0.00017293,2]
[403142082,1769195433410,-156.5,0.00017825,2]
[403142083,1769195433429,-864.0,0.00017969,2]
[403142084,1769195433444,-624.37206404,0.00018046,2]
[403142085,1769195433454,-666.25,0.00018374,2]
[403142086,1769195433463,-341.31947616,0.00018392,2]
[403142087,1769195433472,-2487.15318209,0.00018464,2]
[403142088,1769195433482,-187.78006525,0.00018464,2]
[403142089,1769195433495,-194.72792766,0.00018464,2]
[403142090,1769195433508,-201.93286099,0.00018464,2]
[403142091,1769195433517,-209.40437684,0.00018464,2]
[403142092,1769195433528,-217.15233878,0.00018464,2]
[403142093,1769195433537,-225.18697532,0.00018464,2]
[403142094,1769195433547,-233.51889341,0.00018464,2]
[403142095,1769195433556,-242.15909246,0.00018464,2]
[403142096,1769195433565,-251.11897888,0.00018464,2]
[403142097,1769195433574,-260.4103811,0.00018464,2]
[403142098,1769195433583,-270.0455652,0.00018464,2]
[403142099,1769195433593,-280.03725112,0.00018464,2]
[403142100,1769195433602,-290.39862941,0.00018464,2]
[403142101,1769195433611,-301.1433787,0.00018464,2]
[403142102,1769195433620,-274.408,0.00018767,2]
[403142103,1769195433629,-415.96535423,0.00018823,2]
[403142104,1769195433639,-426.5881704,0.00018957,2]
[403142105,1769195433648,-1404.9280561,0.00018957,2]
[403142106,1769195433656,-1004.916051,0.00019,2]
[403142107,1769195433665,-701.73830086,0.00019012,2]
[403142130,1769195438756,-500.0,0.00014553,2]
[403142132,1769195438766,-315.633585,0.00014553,2]
[403142134,1769195438775,-500.0,0.00014553,2]
[403142136,1769195438785,-215.64895376,0.00018464,2]
[403142140,1769195438810,-299.19175493,0.00018464,2]
[403142142,1769195438819,-1877.43954897,0.00019012,2]
[403142144,1769195438828,-533.88981491,0.00019012,2]
[403142146,1769195438837,-191.9008119,0.00019103,2]
[403142148,1769195438847,-181.233422,0.00019103,2]
[403142150,1769195438856,-183.38,0.000192,2]
[403142152,1769195438866,-156.5,0.00019213,2]
[403142154,1769195438876,-761.43,0.00019454,2]
[403142156,1769195438890,-1000.0,0.000195,2]
[403142158,1769195438899,-157.43607312,0.00019523,2]
[403142160,1769195438909,-674.25816349,0.00019559,2]
[403142162,1769195438923,-874.72977853,0.00019559,2]
[403142479,1769195443824,-66.82205798,0.00019559,2]
[403142481,1769195443833,-2674.60743027,0.0001956,2]
[403142482,1769195443843,-553.64373807,0.0001956,2]
[403142483,1769195443851,-234.89808239,0.00019582,7]
[403142484,1769195443861,-1470.02869129,0.000196,2]
[403142497,1769195446834,-99.57765948,0.000196,2]
[403142498,1769195446845,-552.76,0.0001969,3]
[403142499,1769195446854,-276.38,0.0001969,3]
[403142500,1769195446864,-829.18,0.0001969,3]
[403142501,1769195446873,-140.87748228,0.000197,2]
[403142502,1769195446939,-10.12251772,0.000197,2]
[403142503,1769195446950,-67.80691638,0.000197,2]
[403142504,1769195506097,207.80949354,0.0001395,2]
[403142505,1769195528926,199.24,0.00013005,2]
[403142507,1769195562725,1220.56657775,0.00014,2]
[403142509,1769195607064,194.16,0.00013014,2]
[403142510,1769195691102,189.22,0.00013398,2]
[403142511,1769195768793,184.41,0.00013398,2]
[403142512,1769195845782,179.71,0.00013399,2]
[403142513,1769195930425,175.14,0.00013402,2]
[403142514,1769196003733,500.0,0.00013273,2]
[403142515,1769196009083,170.68,0.00013393,2]
[403142518,1769196084962,166.33,0.00013402,2]
[403142521,1769196105283,-267.72161589,0.00014422,2]
[403142522,1769196105309,-249.5,0.00014519,2]
[403142523,1769196170187,155.75,0.00013729,2]
[403142524,1769196248217,70.32838411,0.00013742,2]
[403142525,1769196248245,81.46161589,0.00013742,2]
[403142603,1769196637777,-221.88,0.0001414,2]
[403142605,1769196637786,-262.36718357,0.00014349,2]
[403142607,1769196637795,-295.84,0.00015228,2]
[403142609,1769196637805,-300.0,0.00015247,2]
[403142611,1769196637814,-1200.0,0.00015247,2]
[403142613,1769196637824,-300.0,0.00015247,2]
[403142614,1769196637833,-300.0,0.00015247,2]
[403142616,1769196637842,-500.0,0.00015247,2]
[403142618,1769196637851,-500.0,0.00015247,2]
[403142620,1769196637860,-500.0,0.00015247,2]
[403142622,1769196637869,-500.0,0.00015247,2]
[403142624,1769196637879,-500.0,0.00015247,2]
[403142626,1769196637889,-500.0,0.00015247,2]
[403142628,1769196637898,-500.0,0.00015247,2]
[403142630,1769196637907,-500.0,0.00015247,2]
[403142632,1769196637916,-500.0,0.00015247,2]
[403142634,1769196637926,-500.0,0.00015247,2]
[403142636,1769196637934,-500.0,0.00015247,2]
[403142637,1769196637943,-500.0,0.00015247,2]
[403142639,1769196637955,-447.46501582,0.00015247,2]
[403142641,1769196637964,-500.0,0.00015247,2]
[403142643,1769196637973,-500.0,0.00015247,2]
[403142645,1769196637982,-500.0,0.00015247,2]
[403142647,1769196637991,-500.0,0.00015247,2]
[403142649,1769196638002,-500.0,0.00015247,2]
[403142651,1769196638011,-500.0,0.00015247,2]
[403142653,1769196638021,-500.0,0.00015247,2]
[403142655,1769196638030,-500.0,0.00015247,2]
[403142657,1769196638039,-500.0,0.00015247,2]
[403142659,1769196638049,-500.0,0.00015247,2]
[403142661,1769196638058,-500.0,0.00015247,2]
[403142663,1769196638067,-69.19446728,0.00015247,2]
[403142666,1769196638087,-139.49522464,0.00015247,2]
[403142667,1769196638098,-312.00477536,0.00015247,2]
[403142670,1769196638111,-214.19160422,0.00015247,2]
[403142671,1769196638120,-193.69839578,0.00015247,2]
[403142674,1769196638133,-306.30160422,0.00015247,2]
[403142676,1769196638143,-500.0,0.00015247,2]
[403142678,1769196638153,-574.20095817,0.00015247,2]
[403142680,1769196638164,-500.0,0.00015247,2]
[403142681,1769196638173,-500.0,0.00015247,2]
[403142683,1769196638185,-184.18459671,0.00015248,2]
[403142685,1769196638194,-1529.3871498,0.00015249,2]
[403142688,1769196638209,-16252.5964016,0.00015249,2]
[403142690,1769196638218,-1291.0,0.000154,3]
[403142692,1769196638228,-2211.75657007,0.000154,2]
[403142693,1769196638239,-300.0,0.00015553,2]
[403142695,1769196638251,-300.0,0.00015553,2]
[403142697,1769196638261,-300.0,0.00015553,2]
[403142699,1769196638270,-300.0,0.00015553,2]
[403142701,1769196638279,-300.0,0.00015553,2]
[403142703,1769196638291,-300.0,0.00015553,2]
[403142705,1769196638301,-300.0,0.00015553,2]
[403142707,1769196638311,-300.0,0.00015553,2]
[403142709,1769196638320,-300.0,0.00015553,2]
[403142711,1769196638330,-300.0,0.00015553,2]
[403142713,1769196638340,-300.0,0.00015553,2]
[403142715,1769196638351,-300.0,0.00015553,2]
[403142717,1769196638360,-300.0,0.00015553,2]
[403142718,1769196638369,-300.0,0.00015553,2]
[403142720,1769196638378,-300.0,0.00015553,2]
[403142722,1769196638388,-600.0,0.00015863,2]
[403142724,1769196638397,-254.368225,0.00016136,2]
[403142726,1769196638406,-369.8,0.00016315,2]
[403142728,1769196638415,-309.59327662,0.00016349,2]
[403142730,1769196638425,-266.93360246,0.00016438,2]
[403142732,1769196638435,-420.0,0.00016683,2]
[403142734,1769196638445,-151.0,0.00016732,2]
[403142736,1769196638455,-155.36874527,0.00016732,2]
[403142738,1769196638465,-151.0,0.00016732,2]
[403142740,1769196638475,-151.0,0.00016732,2]
[403142742,1769196638485,-1041.66666667,0.00016746,2]
[403142744,1769196638495,-1349.0,0.00016768,2]
[403142746,1769196638506,-500.0,0.0001708,2]
[403142748,1769196638515,-443.76,0.00017403,2]
[403142749,1769196638525,-720.0,0.00017449,2]
[403142751,1769196638535,-356.81936966,0.00018349,2]
[403142753,1769196638544,-164.761643,0.00018464,2]
[403142755,1769196638553,-517.72,0.00018491,2]
[403142757,1769196638563,-187.78006525,0.00018808,2]
[403142759,1769196638573,-194.72792766,0.00018808,2]
[403142761,1769196638582,-201.93286099,0.00018808,2]
[403142762,1769196638592,-209.40437684,0.00018808,2]
[403142764,1769196638601,-217.15233878,0.00018808,2]
[403142766,1769196638611,-225.18697532,0.00018808,2]
[403142768,1769196638621,-233.51889341,0.00018808,2]
[403142770,1769196638631,-242.15909246,0.00018808,2]
[403142772,1769196638640,-251.11897888,0.00018808,2]
[403142774,1769196638651,-260.4103811,0.00018808,2]
[403142776,1769196638661,-270.0455652,0.00018808,2]
[403142778,1769196638670,-403.3084572,0.00018808,2]
[403142779,1769196638679,-2487.15318209,0.00018808,2]
[403142780,1769196638689,-514.84070869,0.00018808,2]
[403142781,1769196638698,-181.233422,0.00018863,2]
[403142782,1769196638708,-4044.110079,0.00018863,2]
[403142783,1769196638717,-287.368,0.0001896,2]
[403142784,1769196638726,-864.0,0.00019194,2]
[403142785,1769196638735,-151.0,0.00019213,2]
[403142786,1769196638745,-2579.17784983,0.00019356,2]
[403142787,1769196638754,-533.88981491,0.00019356,2]
[403142788,1769196638763,-500.0,0.00019499,2]
[403142789,1769196638773,-4093.57,0.00019511,3]
[403142790,1769196638781,-591.69,0.00019578,2]
[403142791,1769196638791,-304.0,0.00019636,2]
[403142792,1769196638801,-304.0,0.00019676,2]
[403142793,1769196638951,-1046.40423385,0.000197,2]
[403142794,1769196638969,-358.74166258,0.000197,7]
[403142795,1769196638980,-938.65273722,0.000197,7]
[403142796,1769196638990,-3070.17,0.000197,3]
[403142797,1769196639000,-779.0,0.000197,2]
[403142798,1769196639010,-297.17221788,0.00019711,2]
[403142799,1769196639019,-800.0,0.00019725,2]
[403142800,1769196639028,-800.0,0.00019732,2]
[403142801,1769196639037,-800.0,0.00019739,2]
[403142802,1769196639046,-500.0,0.0001974,2]
[403142803,1769196639056,-500.0,0.0001974,2]
[403142804,1769196639065,-800.0,0.0001975,2]
[403142805,1769196639074,-356.10825699,0.00019751,2]
[403142806,1769196639084,-406.98086513,0.00019751,2]
[403142807,1769196639094,-748.73763761,0.00019751,2]
[403142808,1769196639103,-1331.08913353,0.00019751,2]
[403142809,1769196639113,-800.0,0.00019767,2]
[403142810,1769196639122,-800.0,0.00019772,2]
[403142811,1769196639131,-800.0,0.00019776,2]
[403142812,1769196639141,-276.38,0.00019801,3]
[403142813,1769196639150,-829.14,0.00019801,3]
[403142814,1769196639159,-200.0,0.0001981,2]
[403142815,1769196639169,-201.50586993,0.0001981,2]
[403142816,1769196639179,-500.0,0.0001981,2]
[403142817,1769196639188,-614.56,0.0001981,2]
[403142818,1769196639199,-1633.17,0.0001981,2]